fUSD/lending_fUSD_20250528
["ID","MTS","AMOUNT","RATE_DAILY","PERIOD"]
[362667707,1748391037597,-739.489561,0.00019019,2]
[362667708,1748391037608,-1002.65164984,0.00019019,2]
[362667709,1748391037624,-1952.72595287,0.00019019,2]
[362667710,1748391037635,-3088.97329327,0.00019019,2]
[362667712,1748391037646,-388.00883751,0.00019019,2]
[362667715,1748391037862,-500.18305409,0.00019018,2]
[362667717,1748391037873,-98.0192764,0.00019019,2]
[362667719,1748391039197,-300.0,0.00019018,2]
[362667720,1748391039215,-120.0,0.00019018,2]
[362667721,1748391039225,-420.0,0.00019018,2]
[362667722,1748391039234,-420.0,0.00019018,2]
[362667723,1748391039243,-420.0,0.00019018,2]
[362667724,1748391039253,-8406.80009035,0.00019019,2]
[362667725,1748391039263,-577.94,0.00019019,2]
[362667726,1748391039272,-425.41,0.00019019,2]
[362667727,1748391039282,-3606.37,0.00019019,2]
[362667728,1748391039292,-420.0,0.00019019,2]
[362667729,1748391039301,-420.0,0.00019019,2]
[362667730,1748391039311,-488.32954644,0.00019019,2]
[362667731,1748391039321,-2677.29,0.00019019,2]
[362667732,1748391039330,-891.24,0.00019019,2]
[362667733,1748391039340,-420.0,0.00019019,2]
[362667734,1748391039350,-420.0,0.00019019,2]
[362667735,1748391039360,-602.2,0.00019019,2]
[362667736,1748391039370,-1000.0,0.00019019,2]
[362667737,1748391039380,-1988.29,0.00019019,2]
[362667738,1748391039390,-420.0,0.00019019,2]
[362667739,1748391039400,-420.0,0.00019019,2]
[362667740,1748391039415,-420.0,0.00019019,2]
[362667741,1748391039425,-465.36,0.00019019,2]
[362667742,1748391039435,-420.0,0.00019019,2]
[362667743,1748391039445,-571.31,0.00019019,2]
[362667744,1748391039456,-1230.17,0.00019019,2]
[362667745,1748391039467,-1689.88,0.00019019,2]
[362667746,1748391039477,-420.0,0.00019019,2]
[362667747,1748391039489,-501.69,0.00019019,2]
[362667748,1748391039499,-420.0,0.00019019,2]
[362667749,1748391039510,-692.66,0.00019019,2]
[362667750,1748391039520,-900.07,0.00019019,2]
[362667751,1748391039531,-479.21,0.00019019,2]
[362667752,1748391039541,-420.0,0.00019019,2]
[362667753,1748391039551,-579.37,0.00019019,2]
[362667754,1748391039562,-441.11613224,0.00019019,2]
[362667755,1748391039573,-490.01,0.00019019,2]
[362667756,1748391039583,-265.38921035,0.00019019,2]
[362667757,1748391039593,-2564.08,0.00019019,2]
[362667758,1748391039603,-838.83,0.00019019,2]
[362667759,1748391039614,-420.0,0.00019019,2]
[362667760,1748391039625,-420.0,0.00019019,2]
[362667761,1748391039635,-180.82663686,0.00019019,2]
[362667762,1748391039645,-528.84,0.00019019,2]
[362667763,1748391039655,-1426.79,0.00019019,2]
[362667764,1748391039665,-420.0,0.00019019,2]
[362667765,1748391039676,-9086.84,0.00019019,2]
[362667766,1748391039686,-1214.5,0.00019019,2]
[362667767,1748391039696,-890.99,0.00019019,2]
[362667768,1748391039706,-492.36,0.00019019,2]
[362667769,1748391039717,-801.8,0.00019019,2]
[362667770,1748391039727,-474.17,0.00019019,2]
[362667771,1748391039737,-658.4,0.00019019,2]
[362667773,1748391039748,-2159.61,0.00019019,2]
[362667774,1748391039759,-420.0,0.00019019,2]
[362667776,1748391039769,-1170.31,0.00019019,2]
[362667777,1748391039780,-420.0,0.00019019,2]
[362667778,1748391039790,-420.0,0.00019019,2]
[362667779,1748391039801,-420.0,0.00019019,2]
[362667780,1748391039811,-1086.06,0.00019019,2]
[362667781,1748391039822,-420.0,0.00019019,2]
[362667782,1748391039832,-420.0,0.00019019,2]
[362667783,1748391039842,-2957.07,0.00019019,2]
[362667784,1748391039852,-1099.75,0.00019019,2]
[362667785,1748391039863,-420.0,0.00019019,2]
[362667786,1748391039874,-554.56,0.00019019,2]
[362667788,1748391039884,-420.0,0.00019019,2]
[362667789,1748391039895,-420.0,0.00019019,2]
[362667790,1748391039905,-420.0,0.00019019,2]
[362667791,1748391039915,-688.68,0.00019019,2]
[362667792,1748391039925,-1490.91,0.00019019,2]
[362667794,1748391039935,-1330.94,0.00019019,2]
[362667796,1748391039946,-632.86,0.00019019,2]
[362667798,1748391039956,-420.0,0.00019019,2]
[362667800,1748391039966,-815.49,0.00019019,2]
[362667801,1748391039976,-420.0,0.00019019,2]
[362667802,1748391039987,-420.0,0.00019019,2]
[362667803,1748391039998,-849.91,0.00019019,2]
[362667804,1748391040008,-420.0,0.00019019,2]
[362667805,1748391040021,-420.0,0.00019019,2]
[362667806,1748391040031,-420.0,0.00019019,2]
[362667807,1748391040041,-500.31,0.00019019,2]
[362667808,1748391040051,-1680.33,0.00019019,2]
[362667809,1748391040062,-420.0,0.00019019,2]
[362667810,1748391040072,-420.0,0.00019019,2]
[362667811,1748391040082,-420.0,0.00019019,2]
[362667812,1748391040092,-420.0,0.00019019,2]
[362667813,1748391040102,-420.0,0.0001902,2]
[362667814,1748391040112,-420.0,0.0001902,2]
[362667815,1748391040123,-420.0,0.0001902,2]
[362667816,1748391040133,-420.0,0.0001902,2]
[362667817,1748391040143,-420.0,0.0001902,2]
[362667818,1748391040157,-420.0,0.0001902,2]
[362667819,1748391040179,-500.0,0.0001902,2]
[362667820,1748391040200,-420.0,0.0001902,2]
[362667821,1748391040223,-714.64,0.0001902,2]
[362667822,1748391040244,-420.0,0.0001902,2]
[362667823,1748391040264,-420.0,0.0001902,2]
[362667824,1748391040286,-420.0,0.0001902,2]
[362667825,1748391040309,-420.0,0.0001902,2]
[362667826,1748391040333,-518.27,0.0001902,2]
[362667827,1748391040356,-420.0,0.0001902,2]
[362667828,1748391040382,-437.75911204,0.0001902,2]
[362667829,1748391040411,-420.0,0.0001902,2]
[362667830,1748391040437,-420.0,0.0001902,2]
[362667831,1748391040448,-420.0,0.0001902,2]
[362667832,1748391040457,-420.0,0.0001902,2]
[362667833,1748391040467,-420.0,0.0001902,2]
[362667834,1748391040477,-420.0,0.0001902,2]
[362667835,1748391040494,-420.0,0.0001902,2]
[362667836,1748391040510,-953.01,0.0001902,2]
[362667837,1748391040525,-420.0,0.0001902,2]
[362667838,1748391040536,-420.0,0.0001902,2]
[362667839,1748391040549,-601.14,0.0001902,2]
[362667840,1748391040565,-453.01,0.0001902,2]
[362667841,1748391040579,-420.0,0.0001902,2]
[362667842,1748391040593,-758.67,0.0001902,2]
[362667843,1748391040607,-784.29,0.0001902,2]
[362667844,1748391040621,-420.0,0.0001902,2]
[362667845,1748391040634,-480.01,0.0001902,2]
[362667846,1748391040645,-420.0,0.0001902,2]
[362667847,1748391040659,-420.0,0.0001902,2]
[362667848,1748391040674,-565.15,0.0001902,2]
[362667849,1748391040688,-420.0,0.0001902,2]
[362667850,1748391040702,-420.0,0.0001902,2]
[362667851,1748391040717,-420.0,0.0001902,2]
[362667852,1748391040732,-500.0,0.0001902,2]
[362667853,1748391040745,-420.0,0.0001902,2]
[362667854,1748391040761,-558.35,0.0001902,2]
[362667855,1748391040774,-420.0,0.0001902,2]
[362667856,1748391040787,-420.0,0.0001902,2]
[362667857,1748391040802,-579.42,0.0001902,2]
[362667858,1748391040815,-420.0,0.0001902,2]
[362667859,1748391040828,-420.0,0.0001902,2]
[362667860,1748391040845,-420.0,0.0001902,2]
[362667861,1748391040859,-658.92,0.0001902,2]
[362667862,1748391040873,-420.0,0.0001902,2]
[362667863,1748391040885,-420.0,0.0001902,2]
[362667864,1748391040896,-290.0,0.0001902,2]
[362667865,1748391040908,-420.0,0.0001902,2]
[362667866,1748391040924,-420.0,0.0001902,2]
[362667867,1748391040937,-533.54,0.0001902,2]
[362667868,1748391040948,-515.35,0.0001902,2]
[362667869,1748391040959,-420.0,0.0001902,2]
[362667870,1748391040972,-914.33,0.0001902,2]
[362667871,1748391040989,-420.0,0.0001902,2]
[362667872,1748391041003,-420.0,0.0001902,2]
[362667873,1748391041015,-420.0,0.0001902,2]
[362667874,1748391041033,-466.64218849,0.0001902,2]
[362667875,1748391041046,-420.0,0.0001902,2]
[362667876,1748391041058,-420.0,0.0001902,2]
[362667877,1748391041072,-631.2,0.0001902,2]
[362667878,1748391041084,-464.07,0.0001902,2]
[362667879,1748391041107,-420.0,0.0001902,2]
[362667880,1748391041120,-420.0,0.0001902,2]
[362667881,1748391041133,-420.0,0.0001902,2]
[362667882,1748391041146,-420.0,0.0001902,2]
[362667883,1748391041159,-454.01842371,0.0001902,2]
[362667884,1748391041173,-420.0,0.0001902,2]
[362667885,1748391041186,-491.53,0.0001902,2]
[362667886,1748391041199,-420.0,0.0001902,2]
[362667887,1748391041211,-567.14,0.0001902,2]
[362667888,1748391041223,-287.06872198,0.0001902,2]
[362667889,1748391041236,-420.0,0.0001902,2]
[362667890,1748391041248,-420.0,0.0001902,2]
[362667891,1748391041261,-420.0,0.0001902,2]
[362667892,1748391041273,-420.0,0.0001902,2]
[362667893,1748391041286,-420.0,0.0001902,2]
[362667894,1748391041299,-420.0,0.0001902,2]
[362667895,1748391041310,-430.99,0.0001902,2]
[362667896,1748391041323,-744.66,0.0001902,2]
[362667897,1748391041336,-420.0,0.0001902,2]
[362667898,1748391041348,-420.0,0.0001902,2]
[362667899,1748391041360,-420.0,0.0001902,2]
[362667900,1748391041374,-420.0,0.0001902,2]
[362667901,1748391041386,-420.0,0.0001902,2]
[362667902,1748391041399,-420.0,0.0001902,2]
[362667903,1748391041411,-300.0,0.0001902,2]
[362667904,1748391041424,-420.0,0.0001902,2]
[362667905,1748391041437,-420.0,0.0001902,2]
[362667906,1748391041449,-750.01,0.0001902,2]
[362667907,1748391041461,-420.0,0.0001902,2]
[362667908,1748391041473,-420.0,0.0001902,2]
[362667909,1748391041485,-420.0,0.0001902,2]
[362667910,1748391041497,-461.97,0.0001902,2]
[362667911,1748391041510,-420.0,0.0001902,2]
[362667912,1748391041522,-420.0,0.0001902,2]
[362667913,1748391041535,-420.0,0.0001902,2]
[362667914,1748391041547,-420.0,0.0001902,2]
[362667915,1748391041560,-420.0,0.0001902,2]
[362667916,1748391041571,-519.23656006,0.0001902,2]
[362667917,1748391041584,-420.0,0.0001902,2]
[362667918,1748391041596,-420.0,0.0001902,2]
[362667919,1748391041608,-420.0,0.0001902,2]
[362667920,1748391041619,-420.0,0.0001902,2]
[362667921,1748391041632,-420.0,0.0001902,2]
[362667922,1748391041644,-420.0,0.0001902,2]
[362667923,1748391041657,-420.0,0.0001902,2]
[362667924,1748391041669,-420.0,0.0001902,2]
[362667925,1748391041681,-420.0,0.0001902,2]
[362667926,1748391041693,-420.0,0.0001902,2]
[362667927,1748391041706,-420.0,0.0001902,2]
[362667928,1748391041718,-561.54,0.0001902,2]
[362667929,1748391041730,-420.0,0.0001902,2]
[362667930,1748391041743,-426.76097321,0.0001902,2]
[362667931,1748391041755,-1418.49,0.0001902,2]
[362667932,1748391041767,-420.0,0.0001902,2]
[362667933,1748391041780,-568.79,0.0001902,2]
[362667934,1748391041792,-420.0,0.0001902,2]
[362667935,1748391041805,-892.18,0.0001902,2]
[362667936,1748391041817,-420.0,0.0001902,2]
[362667937,1748391041830,-420.0,0.0001902,2]
[362667938,1748391041842,-420.0,0.0001902,2]
[362667939,1748391041855,-393.64279954,0.0001902,2]
[362667940,1748391041867,-420.0,0.0001902,2]
[362667941,1748391041881,-420.0,0.0001902,2]
[362667942,1748391041894,-466.49,0.0001902,2]
[362667943,1748391041906,-420.0,0.0001902,2]
[362667944,1748391041919,-420.0,0.0001902,2]
[362667945,1748391041932,-420.0,0.0001902,2]
[362667946,1748391041944,-420.0,0.0001902,2]
[362667947,1748391041956,-420.0,0.0001902,2]
[362667948,1748391041968,-420.0,0.0001902,2]
[362667949,1748391041981,-420.0,0.0001902,2]
[362667950,1748391041994,-491.27,0.0001902,2]
[362667951,1748391042007,-420.0,0.0001902,2]
[362667952,1748391042023,-425.71109914,0.0001902,2]
[362667953,1748391042036,-842.26,0.0001902,2]
[362667954,1748391042049,-455.52,0.0001902,2]
[362667955,1748391042063,-420.0,0.0001902,2]
[362667956,1748391042075,-947.39,0.0001902,2]
[362667957,1748391042087,-420.0,0.0001902,2]
[362667958,1748391042100,-1672.29,0.0001902,2]
[362667959,1748391042113,-420.0,0.0001902,2]
[362667960,1748391042126,-1422.78,0.0001902,2]
[362667961,1748391042138,-420.0,0.0001902,2]
[362667962,1748391042150,-420.0,0.0001902,2]
[362667963,1748391042161,-420.0,0.0001902,2]
[362667964,1748391042173,-420.0,0.0001902,2]
[362667965,1748391042185,-420.0,0.0001902,2]
[362667966,1748391042197,-420.0,0.0001902,2]
[362667967,1748391042209,-420.0,0.0001902,2]
[362667968,1748391042221,-1315.08,0.0001902,2]
[362667969,1748391042233,-420.0,0.0001902,2]
[362667970,1748391042245,-420.0,0.0001902,2]
[362667971,1748391042257,-420.0,0.0001902,2]
[362667972,1748391042269,-421.93,0.0001902,2]
[362667973,1748391042281,-420.0,0.0001902,2]
[362667974,1748391042293,-420.0,0.0001902,2]
[362667975,1748391042305,-420.0,0.0001902,2]
[362667976,1748391042316,-420.0,0.0001902,2]
[362667977,1748391042329,-420.0,0.0001902,2]
[362667978,1748391042340,-426.51984163,0.0001902,2]
[362667979,1748391042352,-420.0,0.0001902,2]
[362667980,1748391042363,-420.0,0.0001902,2]
[362667981,1748391042375,-924.99,0.0001902,2]
[362667982,1748391042387,-423.4348262,0.0001902,2]
[362667983,1748391042398,-420.0,0.0001902,2]
[362667984,1748391042410,-420.0,0.0001902,2]
[362667985,1748391042421,-420.0,0.0001902,2]
[362667986,1748391042433,-420.0,0.0001902,2]
[362667987,1748391042443,-420.0,0.0001902,2]
[362667988,1748391042455,-420.0,0.0001902,2]
[362667989,1748391042466,-603.37,0.0001902,2]
[362667990,1748391042477,-420.0,0.0001902,2]
[362667991,1748391042488,-617.45,0.0001902,2]
[362667992,1748391042499,-617.06,0.0001902,2]
[362667993,1748391042511,-420.0,0.0001902,2]
[362667994,1748391042522,-420.0,0.0001902,2]
[362667995,1748391042534,-420.0,0.0001902,2]
[362667996,1748391042545,-420.0,0.0001902,2]
[362667997,1748391042556,-420.0,0.0001902,2]
[362667998,1748391042568,-420.0,0.0001902,2]
[362667999,1748391042579,-520.78702472,0.0001902,2]
[362668000,1748391042590,-420.0,0.0001902,2]
[362668001,1748391042602,-420.0,0.0001902,2]
[362668002,1748391042613,-420.0,0.0001902,2]
[362668003,1748391042625,-420.0,0.0001902,2]
[362668004,1748391042637,-500.0,0.00019021,2]
[362668005,1748391042648,-953.01,0.00019021,2]
[362668006,1748391042660,-226.89316722,0.00019028,2]
[362668007,1748391042671,-3441.4001639,0.00019028,2]
[362668008,1748391042683,-160.55189906,0.00019073,2]
[362668009,1748391042695,-500.0,0.00019073,2]
[362668010,1748391042707,-500.0,0.00019073,2]
[362668011,1748391042719,-500.0,0.00019073,2]
[362668012,1748391042730,-226.89316722,0.00019137,2]
[362668013,1748391042742,-3441.4001639,0.00019137,2]
[362668014,1748391042754,-500.0,0.00019178,2]
[362668015,1748391042766,-500.0,0.00019178,2]
[362668016,1748391042779,-500.0,0.00019178,2]
[362668017,1748391042792,-500.0,0.00019178,2]
[362668018,1748391042803,-500.0,0.00019178,2]
[362668019,1748391042816,-500.0,0.00019178,2]
[362668020,1748391042829,-500.0,0.00019178,2]
[362668021,1748391042840,-376.24221211,0.00019178,2]
[362668022,1748391042852,-500.0,0.00019178,2]
[362668023,1748391042864,-500.0,0.00019178,2]
[362668025,1748391042876,-500.0,0.00019178,2]
[362668026,1748391042887,-478.46,0.00019178,2]
[362668027,1748391042898,-156.69,0.00019178,2]
[362668028,1748391042909,-1286.88,0.00019234,2]
[362668029,1748391042919,-226.89316722,0.00019246,2]
[362668030,1748391042929,-3441.4001639,0.00019246,2]
[362668031,1748391042939,-588.14,0.00019292,2]
[362668032,1748391042950,-481.11,0.00019292,2]
[362668033,1748391042960,-420.0,0.00019292,2]
[362668034,1748391042970,-1143.01,0.00019292,2]
[362668035,1748391042980,-676.68,0.00019292,2]
[362668036,1748391042990,-527.55,0.00019292,2]
[362668037,1748391043000,-3119.66,0.00019292,2]
[362668038,1748391043009,-439.94,0.00019292,2]
[362668039,1748391043022,-674.49,0.00019292,2]
[362668040,1748391043031,-373.29240906,0.00019292,2]
[362668041,1748391043041,-425.93,0.00019292,2]
[362668042,1748391043051,-2090.23,0.00019292,2]
[362668043,1748391043062,-503.09,0.00019292,2]
[362668044,1748391043071,-1434.01,0.00019292,2]
[362668045,1748391043081,-649.59,0.00019292,2]
[362668046,1748391043091,-420.0,0.00019292,2]
[362668048,1748391043102,-497.94,0.00019292,2]
[362668049,1748391043537,-520.06,0.00019292,2]
[362668050,1748391043559,-1461.46,0.00019292,2]
[362668051,1748391043579,-426.01,0.00019292,2]
[362668052,1748391043589,-1290.07,0.00019292,2]
[362668053,1748391043598,-1759.57,0.00019292,2]
[362668054,1748391043608,-420.0,0.00019292,2]
[362668055,1748391043618,-619.54,0.00019292,2]
[362668056,1748391043628,-448.38,0.00019292,2]
[362668057,1748391043637,-907.96,0.00019292,2]
[362668058,1748391043647,-420.0,0.00019292,2]
[362668059,1748391043657,-599.25,0.00019292,2]
[362668060,1748391043667,-1760.3,0.00019292,2]
[362668061,1748391043676,-420.0,0.00019292,2]
[362668062,1748391043686,-420.0,0.00019292,2]
[362668063,1748391043695,-420.0,0.00019292,2]
[362668064,1748391043705,-420.0,0.00019292,2]
[362668065,1748391043714,-667.72,0.00019292,2]
[362668066,1748391043724,-720.43,0.00019292,2]
[362668067,1748391043733,-462.1,0.00019292,2]
[362668068,1748391043743,-456.65,0.00019292,2]
[362668069,1748391043753,-518.22,0.00019292,2]
[362668070,1748391043763,-1591.95,0.00019292,2]
[362668071,1748391043772,-1061.05,0.00019292,2]
[362668072,1748391043782,-523.69,0.00019292,2]
[362668073,1748391043792,-1282.42,0.00019292,2]
[362668074,1748391043802,-420.0,0.00019292,2]
[362668075,1748391043812,-463.71,0.00019292,2]
[362668076,1748391043821,-420.0,0.00019292,2]
[362668077,1748391043832,-872.31,0.00019292,2]
[362668078,1748391043841,-521.18,0.00019292,2]
[362668079,1748391043851,-405.70669218,0.00019292,2]
[362668080,1748391043860,-826.01,0.00019292,2]
[362668081,1748391043871,-2055.59,0.00019292,2]
[362668082,1748391043880,-627.88,0.00019292,2]
[362668083,1748391043891,-820.3,0.00019292,2]
[362668084,1748391043901,-420.0,0.00019292,2]
[362668085,1748391043911,-623.6,0.00019292,2]
[362668086,1748391043921,-500.0,0.00019292,2]
[362668087,1748391043930,-500.0,0.00019292,2]
[362668088,1748391043940,-420.0,0.00019292,2]
[362668089,1748391043950,-2028.33,0.00019292,2]
[362668090,1748391043959,-258.18154011,0.00019292,2]
[362668091,1748391043968,-420.0,0.00019292,2]
[362668092,1748391043978,-1179.75,0.00019292,2]
[362668093,1748391043988,-561.49,0.00019292,2]
[362668094,1748391043998,-3456.82,0.00019292,2]
[362668095,1748391044007,-532.53,0.00019292,2]
[362668096,1748391044018,-595.44,0.00019292,2]
[362668097,1748391044029,-420.0,0.00019292,2]
[362668098,1748391044039,-420.0,0.00019292,2]
[362668099,1748391044048,-420.0,0.00019292,2]
[362668100,1748391044059,-500.0,0.00019293,2]
[362668101,1748391044069,-953.01,0.00019293,2]
[362668102,1748391044079,-420.0,0.00019293,2]
[362668103,1748391044088,-420.0,0.00019293,2]
[362668104,1748391044098,-935.85,0.00019293,2]
[362668105,1748391044107,-420.0,0.00019293,2]
[362668106,1748391044118,-513.39,0.00019293,2]
[362668107,1748391044128,-784.15,0.00019293,2]
[362668108,1748391044138,-537.25,0.00019293,2]
[362668109,1748391044148,-533.77,0.00019293,2]
[362668110,1748391044158,-484.1252984,0.00019293,2]
[362668111,1748391044167,-450.85,0.00019293,2]
[362668112,1748391044177,-420.0,0.00019293,2]
[362668113,1748391044186,-420.0,0.00019293,2]
[362668114,1748391044196,-420.0,0.00019293,2]
[362668115,1748391044205,-420.0,0.00019293,2]
[362668116,1748391044214,-514.81,0.00019293,2]
[362668117,1748391044224,-420.0,0.00019293,2]
[362668118,1748391044233,-210.44385347,0.00019293,2]
[362668119,1748391044243,-420.0,0.00019293,2]
[362668120,1748391044255,-420.0,0.00019293,2]
[362668121,1748391044265,-420.0,0.00019293,2]
[362668122,1748391044274,-420.0,0.00019293,2]
[362668123,1748391044283,-425.68,0.00019293,2]
[362668124,1748391044293,-623.16,0.00019293,2]
[362668125,1748391044305,-598.96,0.00019293,2]
[362668126,1748391044314,-545.22,0.00019293,2]
[362668127,1748391044324,-420.0,0.00019293,2]
[362668128,1748391044333,-420.0,0.00019293,2]
[362668129,1748391044344,-433.97,0.00019293,2]
[362668130,1748391044353,-420.0,0.00019293,2]
[362668131,1748391044363,-548.97,0.00019293,2]
[362668132,1748391044372,-493.78,0.00019293,2]
[362668133,1748391044381,-420.0,0.00019293,2]
[362668134,1748391044396,-420.0,0.00019293,2]
[362668135,1748391044417,-420.0,0.00019293,2]
[362668136,1748391044435,-1199.16,0.00019293,2]
[362668137,1748391044456,-496.81,0.00019293,2]
[362668138,1748391044476,-420.0,0.00019293,2]
[362668139,1748391044497,-448.5,0.00019293,2]
[362668140,1748391044519,-420.0,0.00019293,2]
[362668141,1748391044544,-420.0,0.00019293,2]
[362668142,1748391044571,-749.96,0.00019293,2]
[362668143,1748391044595,-420.0,0.00019293,2]
[362668144,1748391044617,-649.99,0.00019293,2]
[362668145,1748391044653,-250.0,0.00019293,2]
[362668146,1748391044682,-420.0,0.00019293,2]
[362668147,1748391044693,-958.07,0.00019293,2]
[362668148,1748391044702,-483.14,0.00019293,2]
[362668149,1748391044712,-420.0,0.00019293,2]
[362668150,1748391044722,-476.53,0.00019293,2]
[362668151,1748391044731,-784.95,0.00019293,2]
[362668152,1748391044741,-495.13,0.00019293,2]
[362668153,1748391044751,-420.0,0.00019293,2]
[362668154,1748391044761,-740.51,0.00019293,2]
[362668155,1748391044771,-420.0,0.00019293,2]
[362668156,1748391044781,-501.43373608,0.00019293,2]
[362668157,1748391044791,-427.6,0.00019293,2]
[362668158,1748391044801,-456.19,0.00019293,2]
[362668159,1748391044810,-420.0,0.00019293,2]
[362668160,1748391044820,-420.0,0.00019293,2]
[362668161,1748391044829,-152.77,0.00019293,2]
[362668162,1748391044839,-743.98,0.00019293,2]
[362668163,1748391044849,-586.45,0.00019293,2]
[362668164,1748391044858,-420.0,0.00019293,2]
[362668165,1748391044868,-767.7,0.00019293,2]
[362668166,1748391044878,-420.0,0.00019293,2]
[362668167,1748391044888,-420.0,0.00019293,2]
[362668168,1748391044898,-420.0,0.00019293,2]
[362668169,1748391044909,-465.13,0.00019293,2]
[362668170,1748391044919,-420.0,0.00019293,2]
[362668171,1748391044928,-802.61,0.00019293,2]
[362668172,1748391044938,-521.17,0.00019293,2]
[362668173,1748391044947,-715.24,0.00019293,2]
[362668174,1748391044958,-420.0,0.00019293,2]
[362668175,1748391044968,-591.2,0.00019293,2]
[362668176,1748391044977,-498.75,0.00019293,2]
[362668177,1748391044989,-420.0,0.00019293,2]
[362668178,1748391044998,-577.38,0.00019293,2]
[362668179,1748391045009,-467.37,0.00019293,2]
[362668180,1748391045023,-420.0,0.00019293,2]
[362668181,1748391045032,-914.07,0.00019293,2]
[362668182,1748391045042,-420.0,0.00019293,2]
[362668183,1748391045051,-878.0,0.00019293,2]
[362668184,1748391045062,-420.0,0.00019293,2]
[362668185,1748391045071,-601.04,0.00019293,2]
[362668186,1748391045082,-817.95,0.00019293,2]
[362668187,1748391045092,-525.0,0.00019293,2]
[362668188,1748391045102,-566.4141206,0.00019293,2]
[362668189,1748391045112,-420.0,0.00019293,2]
[362668190,1748391045122,-420.0,0.00019293,2]
[362668191,1748391045131,-444.96,0.00019293,2]
[362668192,1748391045141,-461.01,0.00019293,2]
[362668193,1748391045151,-420.0,0.00019293,2]
[362668194,1748391045161,-452.52,0.00019293,2]
[362668195,1748391045170,-488.18,0.00019293,2]
[362668196,1748391045180,-524.1,0.00019293,2]
[362668197,1748391045190,-420.0,0.00019293,2]
[362668198,1748391045199,-595.98,0.00019293,2]
[362668199,1748391045208,-705.76,0.00019293,2]
[362668200,1748391045218,-420.0,0.00019293,2]
[362668201,1748391045228,-420.0,0.00019293,2]
[362668202,1748391045237,-420.0,0.00019293,2]
[362668203,1748391045246,-420.0,0.00019293,2]
[362668204,1748391045256,-420.0,0.00019293,2]
[362668205,1748391045265,-623.07,0.00019293,2]
[362668206,1748391045274,-624.74,0.00019293,2]
[362668207,1748391045284,-420.0,0.00019293,2]
[362668208,1748391045293,-420.0,0.00019293,2]
[362668209,1748391045302,-420.0,0.00019293,2]
[362668210,1748391045311,-420.0,0.00019293,2]
[362668211,1748391045320,-631.78,0.00019293,2]
[362668212,1748391045329,-1664.89,0.00019293,2]
[362668213,1748391045338,-420.0,0.00019293,2]
[362668214,1748391045348,-488.96,0.00019293,2]
[362668215,1748391045357,-420.0,0.00019293,2]
[362668216,1748391045366,-400.0,0.00019293,2]
[362668217,1748391045376,-420.0,0.00019293,2]
[362668218,1748391045385,-497.38,0.00019293,2]
[362668219,1748391045395,-420.0,0.00019293,2]
[362668220,1748391045404,-420.0,0.00019293,2]